Cogmind - Beta 14 @@@ ROGUE MODE // 2024.09.02 @ 12:21:03 Player: Minty Result: Destroyed by VL-0TX(M) with Battle Cannon Performance ------------- Evolutions (4) 2000 Regions Visited (16) 3200 Robots Destroyed (247) 1235 Value Destroyed (7592) 7592 Prototype IDs (57) 1140 Alien Tech Used (0) 0 Bonus (1253) 1253 TOTAL SCORE: 16420 Bonus ------- High Alert Combat Kills 432 Follower Combat Kills 412 Aligned with FarCom 300 Met Data Miner 300 Met Imprinter 300 Friendly Fire -491 Cogmind --------- Core Integrity 0/850 Matter 300/300 Energy 98/100 System Corruption 7% Temperature Cool (0) Movement Core (50) Location -6/Zion Parts ------- > --- POWER (1) -------- (None) > --- PROPULSION (3) --- (None) > --- UTILITY (7) ------ Salvage Targeting Computer Graphene Brace > --- WEAPON (4) ------- (None) > --- INVENTORY (5) ---- F-cell Engine CR-A16's Pointy Stick Peak State ------------ > --- POWER ------------ Fusion Reactor > --- PROPULSION ------- Flexi-carbon Leg Flexi-carbon Leg Improved VSS Leg > --- UTILITY ---------- Improved Cooling System Large Storage Unit 0b10 Alert Chip Advanced Melee Analysis Suite Core Analyzer Graphene Brace Hacking Suite > --- WEAPON ----------- Heavy Gatling Laser Guided EMP Blaster Vibroblade > --- INVENTORY -------- Enhanced Nuclear Core Cooling System Improved Energy Well Experimental Matter Compressor Advanced Signal Interpreter Guided Plasma Cannon Firepult Guided EMP Blaster Tesla Bomb Launcher Tiamat Missile Launcher Vibroblade Fire Trap Fire Trap [Rating: 88] Favorites ----------- Power Cooled Ion Engine Engine Cooled Ion Engine Power Core Enhanced Nuclear Core Reactor Fusion Reactor Propulsion Improved Treads Treads Improved Treads Leg Flexi-carbon Leg Wheel Compact Wheel Utility Large Storage Unit Device Cooling System Storage Large Storage Unit Processor Core Analyzer Hackware Hacking Suite Protection Hardened Light Armor Plating Weapon Improved Assault Rifle Energy Gun Particle Gun Energy Cannon Firepult Ballistic Gun Improved Assault Rifle Ballistic Cannon Improved Light Cannon Launcher Guided EMP Blaster Slashing Weapon Axe Piercing Weapon CR-A16's Pointy Stick Special Melee Weapon Improved Datajack Build | -11 -10 -9 -9 -9 -8 -8 -8 -7 -7 -7 -7 -6 -6 -6 -6 -6 ------- Run | Yrd Mat Mat Min Exi Min Mat Sto Fac Low Low Dat Pro Fac Low Low Zio Slots Evolved 8 | . . 2 . . . 2 . 2 . . . . 2 . . . Power . | . . . . . . . . . . . . . . . . . Propulsion 1 | . . . . . . . . . . . . . 1 . . . Utility 5 | . . 1 . . . 1 . 2 . . . . 1 . . . Weapon 2 | . . 1 . . . 1 . . . . . . . . . . Parts Attached 183 | . 4 23 8 . 9 8 12 24 4 6 . 4 42 21 4 14 Power 15 | . . 3 . . . . 3 3 1 . . 1 2 1 . 1 Engine 11 | . . 3 . . . . 3 2 1 . . 1 . . . 1 Core 3 | . . . . . . . . 1 . . . . 1 1 . . Reactor 1 | . . . . . . . . . . . . . 1 . . . Propulsion 29 | . 2 5 2 . . . 2 2 . 1 . 1 6 5 . 3 Treads 19 | . 2 5 2 . . . 2 . . . . 1 . 4 . 3 Leg 8 | . . . . . . . . . . 1 . . 6 1 . . Wheel 2 | . . . . . . . . 2 . . . . . . . . Hover . | . . . . . . . . . . . . . . . . . Flight . | . . . . . . . . . . . . . . . . . Utility 58 | . 1 6 3 . 3 5 . 8 3 1 . . 15 8 2 3 Device 21 | . . 2 3 . 2 . . 5 1 1 . . 3 1 2 1 Storage 8 | . . 2 . . . . . . . . . . 2 3 . 1 Processor 11 | . 1 . . . . 1 . . 2 . . . 5 1 . 1 Hackware 5 | . . . . . . 1 . 2 . . . . 2 . . . Protection 13 | . . 2 . . 1 3 . 1 . . . . 3 3 . . Artifact . | . . . . . . . . . . . . . . . . . Weapon 81 | . 1 9 3 . 6 3 7 11 . 4 . 2 19 7 2 7 Energy Gun 26 | . 1 6 . . . . 4 5 . 2 . 1 5 . . 2 Energy Cannon 4 | . . . . . . . . . . 1 . . 3 . . . Ballistic Gun 22 | . . 1 3 . 4 2 3 4 . 1 . . 2 1 1 . Ballistic Cannon 2 | . . 2 . . . . . . . . . . . . . . Launcher 16 | . . . . . 2 1 . 2 . . . 1 4 3 . 3 Special Weapon . | . . . . . . . . . . . . . . . . . Impact Weapon . | . . . . . . . . . . . . . . . . . Slashing Weapon 7 | . . . . . . . . . . . . . 3 3 1 . Piercing Weapon 2 | . . . . . . . . . . . . . . . . 2 Special Melee Weapon 2 | . . . . . . . . . . . . . 2 . . . Unidentified Prototypes 15 | . . . 1 . . . 2 3 . . . . 8 . . 1 Corrupted Parts 2 | . . . . . . . . . . . . . . 2 . . System Corruption 6 | . . . . . . . . . . . . . . 6 . . Parts Lost 54 | . . 2 1 . 1 1 . 4 1 2 . 1 12 15 3 11 Power 6 | . . 1 . . . . . 1 1 . . 1 1 1 . . Propulsion 13 | . . . . . . . . 2 . 1 . . 2 3 1 4 Utility 17 | . . . . . 1 1 . . . . . . 3 5 2 5 Weapon 18 | . . 1 1 . . . . 1 . 1 . . 6 6 . 2 Highest Loss Streak 13 | . . 1 1 . 1 1 . 4 1 2 . 1 6 13 3 7 To Critical Strikes . | . . . . . . . . . . . . . . . . . Average Slot Usage (%) 89 | . 95 97 99 72 97 98 98 99 99 84 69 77 92 74 83 74 Engine 6 | . 14 10 11 11 11 9 9 7 7 7 7 6 3 . . . Core 1 | . . . . . . . . . . . . . . 3 6 5 Treads 12 | . 21 22 22 22 22 18 17 5 . . . 3 1 10 13 13 Leg 3 | . 6 . . . . . . . . 2 7 7 14 8 . . Wheel 1 | . . . . . . . . 9 15 7 7 3 . . . . Device 12 | . . 9 11 11 10 9 9 7 15 15 15 15 10 15 24 23 Storage 8 | . 14 11 11 11 11 9 9 7 7 7 7 7 6 3 6 6 Processor 6 | . 9 1 . . . . . . 14 15 15 15 19 7 . . Hackware 2 | . . . . . . 7 9 23 . . . . . . . . Protection 8 | . . 9 11 11 11 7 9 7 7 7 7 7 6 10 13 11 Energy Gun 10 | . 14 30 17 . . . 7 19 23 11 . 3 10 2 . 3 Ballistic Gun 9 | . 14 . 15 6 29 35 28 10 7 7 . . 4 1 5 2 Launcher 1 | . . . . . 1 . . . . . . 4 3 3 6 2 Peak Build Rating 88 | . 10 21 28 25 29 34 37 44 50 60 43 48 88 86 63 69 Average Rating 40 | . 8 16 23 19 26 33 35 41 49 42 34 41 68 54 61 64 On Entrance 36 | 6 6 10 21 25 19 29 34 37 44 50 48 34 48 86 54 63 Naked Turns . | . . . . . . . . . . . . . . . . . Heaviest Build 62 | 13 15 44 44 43 43 46 43 47 48 62 32 46 61 54 45 47 Greatest Support 76 | 20 40 46 46 46 46 46 46 46 32 32 15 30 55 68 48 76 Greatest Overweight (x) 14 | . . . . . . . 1 13 1 14 2 2 2 1 . 11 Average Overweight (x) . | . . . . . . . . . 1 5 2 1 . . . . Largest Inventory Capacity 15 | . 8 15 15 15 15 15 15 15 15 15 15 15 15 15 5 5 Average Capacity 12 | . 8 13 15 15 15 15 15 15 15 15 15 15 15 9 5 5 Most Carried 15 | . 8 15 15 15 15 12 15 15 15 15 15 15 15 15 5 5 Average Carried 11 | . 7 12 14 14 11 11 14 14 12 13 14 14 14 7 4 4 Final Capacity 15 | 8 8 15 15 15 15 15 15 15 15 15 15 15 15 5 5 5 Final Carried 15 | 6 8 15 15 15 12 12 15 15 13 13 15 14 15 4 5 2 Class Distribution -------------------- 23% | Skirmisher 20% | Tank 18% | Mutant 12% | Scavenger-Tank 6% | Commander-Skirmisher 6% | Hacker-Tank 5% | Scavenger-Mutant 3% | Scavenger-Gunner Dominant Class ---------------- Mutant | -10/Materials Tank | -9/Materials Tank | -9/Mines Mutant | -9/Exiles Skirmisher | -8/Mines Skirmisher | -8/Materials Commander-Skirmisher | -8/Storage Hacker-Tank | -7/Factory Skirmisher | -7/Lower Caves Skirmisher | -7/Lower Caves Mutant | -7/Data Miner Mutant | -6/Proximity Caves Skirmisher | -6/Factory Scavenger-Mutant | -6/Lower Caves Scavenger-Tank | -6/Lower Caves Scavenger-Tank | -6/Zion Resources | -11 -10 -9 -9 -9 -8 -8 -8 -7 -7 -7 -7 -6 -6 -6 -6 -6 ----------- Run | Yrd Mat Mat Min Exi Min Mat Sto Fac Low Low Dat Pro Fac Low Low Zio Matter Collected 5017 | 200 140 318 267 . 227 482 343 268 224 124 . 144 1303 557 282 138 Remotely 345 | . . . . . . . . . . . . . . . 213 132 Salvage Created 9719 | . 592 1333 696 . 160 916 772 579 453 209 . 232 2362 700 225 490 Parts 514 | . 42 95 36 . 17 60 33 26 20 9 . 7 113 23 7 26 Haulers Intercepted 16 | . 1 6 . . . 1 4 1 . . . . 3 . . . Recyclers Shooed 2 | . . . . . 1 . . . . . . . 1 . . . Parts Field Recycled . | . . . . . . . . . . . . . . . . . Retrieved Matter . | . . . . . . . . . . . . . . . . . Parts Self-Destructed 41 | . . . . . . . . . 22 12 . 6 . 1 . . Prevented 21 | . . . . . . . . . 1 . . 1 . 9 10 . Kills | -11 -10 -9 -9 -9 -8 -8 -8 -7 -7 -7 -7 -6 -6 -6 -6 -6 ------- Run | Yrd Mat Mat Min Exi Min Mat Sto Fac Low Low Dat Pro Fac Low Low Zio Combat Hostiles Destroyed 164 | . 8 28 14 . 7 16 6 11 8 2 . 7 37 12 3 5 Guns 114 | . 8 24 13 . 3 14 6 10 7 1 . 2 17 5 . 4 Cannons 4 | . . . . . . . . . . . . . 4 . . . AOE 32 | . . 3 . . 4 2 . 1 . . . 5 10 4 2 1 Classes Destroyed 24 | . 5 5 2 . 1 2 . 1 1 3 . . 3 1 . . Worker 21 | . 3 6 2 . 3 1 . 1 . . . . 5 . . . Builder 7 | . . 1 1 . . 1 . 1 . . . . 3 . . . Tunneler 6 | . . . 3 . 1 . . . . . . . 2 . . . Hauler 16 | . 1 6 . . . 1 4 1 . . . . 3 . . . Recycler 8 | . 1 1 2 . . 1 2 . . . . . 1 . . . Minesweeper 1 | . . . . . . . . . 1 . . . . . . . Mechanic 2 | . . . . . . 1 1 . . . . . . . . . Operator 4 | . . 1 . . . 1 1 . . . . . 1 . . . Watcher 8 | . 3 3 . . . . . . . . . . 2 . . . Swarmer 31 | . . 10 7 . 4 . . . . . . 3 7 . . . Saboteur 1 | . . . . . . . . . . . . . 1 . . . Grunt 76 | . 8 11 6 . 3 8 2 9 5 . . 3 14 5 2 . Brawler 2 | . . . 1 . . . . . 1 . . . . . . . Duelist 2 | . . 1 . . . . . . 1 . . . . . . . Protector 1 | . . . . . . . . . . . . . 1 . . . Sentry 23 | . . 6 . . . 7 5 1 . . . 1 2 . 1 . Specialist 2 | . . . . . . . . . . . . . 2 . . . Hunter 7 | . . . . . . 1 . . 1 . . . 5 . . . Programmer 5 | . . . . . . . . . . 1 . . 4 . . . Heavy 2 | . . . . . . . . 1 . . . . 1 . . . Behemoth 1 | . . . . . . . . . . 1 . . . . . . Zionite 9 | . . . . . 1 . . . . . . . . . . 8 Decomposer 1 | . . . . . . . . . . 1 . . . . . . Samaritan 1 | . . . . . . . . . . 1 . . . . . . Thug 1 | . . . . . . . . . . . . . . 1 . . Savage 5 | . . . . . . . . . . . . . . 5 . . Mutant 5 | . . . . . . . . . . . . . . 1 . 4 Best Kill Streak 15 | . 5 8 6 . 3 6 5 4 4 2 . 3 15 4 2 5 Combat Bots Only 11 | . 2 7 4 . 3 4 3 4 4 1 . 3 11 4 2 5 Max Kills in Single Turn 3 | . 1 3 2 . 2 2 2 3 2 1 . 2 3 2 1 2 Gunslinging 1 | . . 1 1 . . 1 . 1 1 . . . 1 . . . Exploded 3 | . . 3 . . 2 1 . 1 . . . 2 2 1 1 1 Melee . | . . . . . . . . . . . . . . . . . Uniques/NPCs Destroyed 1 | . . . . . . . . . . . . . . . . 1 Imprinter (-6/Zion) Combat | -11 -10 -9 -9 -9 -8 -8 -8 -7 -7 -7 -7 -6 -6 -6 -6 -6 -------- Run | Yrd Mat Mat Min Exi Min Mat Sto Fac Low Low Dat Pro Fac Low Low Zio Hostile Shots Fired 871 | . 18 106 53 . 29 50 23 75 27 10 . 33 148 62 61 176 Missed 301 | . 4 29 7 . 13 15 7 33 11 4 . 15 56 25 26 56 Damage Taken 9622 | . 178 1032 424 . 257 616 273 795 332 316 . 273 1513 1151 539 1923 Core 1434 | . 27 141 19 . 13 45 32 82 28 147 . 36 261 110 49 444 Absorbed by Shields . | . . . . . . . . . . . . . . . . . Redirected to Shielding 305 | . . . . . . 104 59 15 17 4 . 6 100 . . . Ignored by Resistances 12 | . . . . . . 12 . . . . . . . . . . Regen/Repaired (Parts) 669 | . . 119 . . . 115 329 . . . . . 106 . . . Core Remaining (%) 77 | 100 89 . . . 56 . 86 . . . . 58 . . . . Volleys Fired 425 | . 31 71 50 . 13 33 26 28 19 8 . 11 58 44 14 19 Largest 4 | . 2 3 3 . 3 4 4 4 4 3 . 2 4 3 1 1 Hottest 278 | . 85 195 195 . 76 99 168 235 235 250 . 106 278 176 50 250 Shots Fired 1111 | . 58 206 147 . 25 132 102 108 76 16 . 16 121 69 16 19 Gun 1025 | . 58 202 147 . 18 129 102 106 76 12 . 9 97 49 4 16 Cannon 16 | . . 4 . . . . . . . 4 . . 8 . . . Launcher 70 | . . . . . 7 3 . 2 . . . 7 16 20 12 3 Special . | . . . . . . . . . . . . . . . . . Kinetic 456 | . 31 10 60 . 18 129 78 37 19 4 . . 43 23 4 . Thermal 572 | . 27 196 87 . . . 24 69 57 12 . . 58 26 . 16 Explosive 36 | . . . . . 7 3 . 2 . . . 7 14 2 . 1 Electromagnetic 47 | . . . . . . . . . . . . 9 6 18 12 2 Robot Hit Streak 21 | . 9 12 9 . 4 21 8 12 9 5 . 7 15 14 8 14 Robot Miss Streak 8 | . 3 5 6 . 3 2 3 4 3 3 . 1 4 8 1 8 Penetration Max . | . . . . . . . . . . . . . . . . . Secondary Targets 18 | . 1 3 5 . . 2 . 2 3 . . . 1 1 . . Max Gunslinging Chain 1 | . 1 1 1 . . 1 . 1 1 . . . 1 1 . . Shots Hit Robots 702 | . 34 122 72 . 12 91 61 73 49 10 . 15 87 47 11 18 Core Hits 452 | . 23 54 27 . 16 44 25 33 19 5 . 21 116 30 11 28 Critical Kills 2 | . . . . . . . . . . . . . 2 . . . Critical Parts Destroyed . | . . . . . . . . . . . . . . . . . Critical Strikes 19 | . 1 5 3 . . . 2 4 2 . . . 2 . . . Burn 17 | . 1 5 3 . . . 2 4 2 . . . . . . . Destroy 2 | . . . . . . . . . . . . . 2 . . . Melee Attacks 13 | . . . . . . . . . . . . . 6 7 . . Impact . | . . . . . . . . . . . . . . . . . Slashing 13 | . . . . . . . . . . . . . 6 7 . . Piercing . | . . . . . . . . . . . . . . . . . Sneak Attacks 3 | . . . . . . . . . . . . . 3 . . . Combat Hostiles . | . . . . . . . . . . . . . . . . . Follow-up Attacks 2 | . . . . . . . . . . . . . . 2 . . Damage Inflicted 19589 | . 490 2441 1183 . 688 1607 1087 1584 986 305 . 685 4399 2182 524 1428 Guns 12442 | . 490 1911 1121 . 150 1306 1067 1277 986 128 . 124 1756 977 25 1124 Cannons 407 | . . 43 . . . . . . . 72 . . 292 . . . Explosions 5953 | . . 436 . . 495 287 . 307 . 105 . 561 1962 1013 483 304 Melee 581 | . . . . . . . . . . . . . 389 192 . . Ramming 206 | . . 51 62 . 43 14 20 . . . . . . . 16 . Kinetic 4718 | . 245 90 569 . 150 1306 754 416 235 26 . . 553 349 25 . Thermal 9304 | . 245 2300 552 . . . 313 861 751 279 . . 2251 628 . 1124 Explosive 3069 | . . . . . 495 287 . 307 . . . 561 1103 203 . 113 Electromagnetic 1711 | . . . . . . . . . . . . 124 103 810 483 191 Impact . | . . . . . . . . . . . . . . . . . Slashing 581 | . . . . . . . . . . . . . 389 192 . . Piercing . | . . . . . . . . . . . . . . . . . Highest Corruption 36 | . 1 1 1 1 1 1 1 1 2 2 2 2 4 35 36 36 Average Corruption 7 | . 1 1 1 1 1 1 1 1 1 2 2 2 3 23 35 14 Corruption Purged . | . . . . . . . . . . . . . . . . . Corruption Blocked . | . . . . . . . . . . . . . . . . . Effects 172 | . 3 2 8 1 6 . 5 . 6 15 2 13 14 37 55 5 Message Errors 44 | . 1 1 4 1 1 . 2 . 1 . 1 2 4 8 16 2 Matter Fused 41 | . 1 . 2 . 2 . . . 3 7 1 2 3 8 11 1 Heat Flow Errors 24 | . . 1 1 . 1 . 1 . . 4 . 1 1 2 12 . Energy Discharges 13 | . 1 . . . 2 . 1 . 1 . . 1 1 3 3 . Parts Fused 4 | . . . . . . . . . . . . 1 . . 3 . Data Loss (minor) 21 | . . . . . . . 1 . 1 3 . 2 2 6 5 1 Data Loss (major) 9 | . . . 1 . . . . . . . . 3 1 3 . 1 Misfires 6 | . . . . . . . . . . . . 1 1 1 3 . Alerts 5 | . . . . . . . . . . 1 . . . 3 1 . Weapon Failures 5 | . . . . . . . . . . . . . 1 3 1 . Overload Shots . | . . . . . . . . . . . . . . . . . Overflow Damage 363 | . . 226 . . 6 . . 2 . . . . 78 21 16 14 Projectiles . | . . . . . . . . . . . . . . . . . Explosions 321 | . . 226 . . 6 . . 2 . . . . 43 20 10 14 Melee 42 | . . . . . . . . . . . . . 35 1 6 . Knockbacks 4 | . . 2 . . 2 . . . . . . . . . . . Impact 2 | . . 1 . . 1 . . . . . . . . . . . Kinetic 1 | . . 1 . . . . . . . . . . . . . . Secondary 1 | . . . . . 1 . . . . . . . . . . . Self-Inflicted Damage 650 | . . . . . 48 . . . . 53 . 21 36 252 124 116 Shots 25 | . . . . . 1 . . . . 5 . 2 1 7 6 3 Rammed 21 | . . 7 3 . 5 1 3 . . . . . . . 2 . Targets Rammed 26 | . . 7 5 . 6 3 3 . . . . . . . 2 . Kicked . | . . . . . . . . . . . . . . . . . Crushed 5 | . . . 2 . 1 2 . . . . . . . . . . Highest Temperature 636 | . 210 380 419 . 178 18 221 387 357 636 . 166 424 256 256 403 Average Temperature 104 | . 63 106 151 . 34 11 51 105 116 182 . 70 89 67 88 124 Received Heat Transfer 2343 | . 117 267 84 . 90 270 99 258 108 24 . 57 282 162 150 375 Effects 14 | . . 3 2 . . . . 1 . 5 . . . 2 . 1 Energy Bleed 3 | . . 2 1 . . . . . . . . . . . . . Interference 6 | . . . 1 . . . . 1 . 2 . . . 2 . . Matter Decay 1 | . . 1 . . . . . . . . . . . . . . Short Circuit 2 | . . . . . . . . . . 2 . . . . . . Damage (minor) 1 | . . . . . . . . . . . . . . . . 1 Damage (core) 1 | . . . . . . . . . . 1 . . . . . . Siege Activations . | . . . . . . . . . . . . . . . . . Robots Corrupted 4 | . . . . . . . . . . . . . . 3 1 . Combat Hostiles 4 | . . . . . . . . . . . . . . 3 1 . Parts Fried 5 | . . . . . . . . . . . . . . 2 3 . Impact Corruptions 1 | . . . . . . . . . . . . . . . 1 . Robots Melted 10 | . . 1 1 . . . . . . 1 . . 7 . . . Combat Hostiles 9 | . . 1 1 . . . . . . 1 . . 6 . . . Parts Melted 70 | . 1 11 . . . . 3 4 1 9 . 1 38 . . 2 Heat Transferred 21785 | . 630 4912 1517 . . . 814 2072 1554 905 . . 6833 1050 . 1498 Parts Sabotaged . | . . . . . . . . . . . . . . . . . Parts Stolen 3 | . . . . . . . . . . . . . . 3 . . Parts Stripped . | . . . . . . . . . . . . . . . . . Power Chain Reactions 4 | . . . . . . . . . . . . . 2 1 . 1 Alert | -11 -10 -9 -9 -9 -8 -8 -8 -7 -7 -7 -7 -6 -6 -6 -6 -6 ------- Run | Yrd Mat Mat Min Exi Min Mat Sto Fac Low Low Dat Pro Fac Low Low Zio Peak Influence 719 | . 246 677 397 . 238 387 650 355 . . . . 719 . . . Initial 222 | . . 52 222 . . 18 130 140 . . . . . . . . Average 264 | . 125 348 273 . 137 241 339 208 . . . . 276 . . . Maximum Alert Level 3 | . 1 2 1 . 1 1 2 1 . . . . 3 . . . Low Security (%) 37 | . 79 34 10 . 50 35 13 62 . . . . 41 . . . Level 1 41 | . 20 19 89 . 50 64 53 37 . . . . 11 . . . Level 2 20 | . . 45 . . . . 32 . . . . . 43 . . . Level 3 . | . . . . . . . . . . . . . 3 . . . Level 4 . | . . . . . . . . . . . . . . . . . Level 5 . | . . . . . . . . . . . . . . . . . High Security . | . . . . . . . . . . . . . . . . . Max Security . | . . . . . . . . . . . . . . . . . Squads Dispatched 43 | . 4 6 . . . 14 3 5 . . . . 11 . . . Investigation 19 | . 3 6 . . . 4 2 1 . . . . 3 . . . Extermination 1 | . . . . . . . . . . . . . 1 . . . Reinforcement 16 | . 1 . . . . 5 1 4 . . . . 5 . . . Assault 1 | . . . . . . . . . . . . . 1 . . . Garrison 6 | . . . . . . 5 . . . . . . 1 . . . Intercept . | . . . . . . . . . . . . . . . . . Searches Triggered . | . . . . . . . . . . . . . . . . . Data Miner Redirects 2 | . . . . . . . . . . . . . 2 . . . Construction Impeded 2 | . . . . . . 2 . . . . . . . . . . Haulers Reinforced 2 | . . . . . . . . 1 . . . . 1 . . . Active Scanning Responses . | . . . . . . . . . . . . . . . . . Cargo Convoy Interrupts 1 | . . . . . . . . . . . . . 1 . . . Stealth | -11 -10 -9 -9 -9 -8 -8 -8 -7 -7 -7 -7 -6 -6 -6 -6 -6 --------- Run | Yrd Mat Mat Min Exi Min Mat Sto Fac Low Low Dat Pro Fac Low Low Zio Distress Signals 6 | . . 2 . . . 4 . . . . . . . . . . Communications Jammed . | . . . . . . . . . . . . . . . . . Distress Signals . | . . . . . . . . . . . . . . . . . Times Spotted 228 | . 11 33 15 . 7 19 19 19 8 2 . 7 47 16 5 20 Peak Tracking Total 11 | . 2 5 4 . 4 3 3 5 4 1 . 3 11 4 4 8 Tactical Retreats 4 | . . . 1 . 1 . . . . . . . 2 . . . Traps | -11 -10 -9 -9 -9 -8 -8 -8 -7 -7 -7 -7 -6 -6 -6 -6 -6 ------- Run | Yrd Mat Mat Min Exi Min Mat Sto Fac Low Low Dat Pro Fac Low Low Zio Traps Triggered 6 | . . 2 . . . 1 . 1 1 . . . 1 . . . Indirectly . | . . . . . . . . . . . . . . . . . Trap Hack Attempts . | . . . . . . . . . . . . . . . . . Triggered . | . . . . . . . . . . . . . . . . . Disarmed . | . . . . . . . . . . . . . . . . . Reprogrammed . | . . . . . . . . . . . . . . . . . Reused . | . . . . . . . . . . . . . . . . . Traps Extracted . | . . . . . . . . . . . . . . . . . Installed . | . . . . . . . . . . . . . . . . . Triggered 2 | . . . . . . . . . 2 . . . . . . . Most Traps Carried 2 | . . . . . . . . . 2 2 2 2 2 2 . . Objects Rigged 7 | . 2 5 . . . . . . . . . . . . . . Exploded 2 | . . 2 . . . . . . . . . . . . . . Machines | -11 -10 -9 -9 -9 -8 -8 -8 -7 -7 -7 -7 -6 -6 -6 -6 -6 ---------- Run | Yrd Mat Mat Min Exi Min Mat Sto Fac Low Low Dat Pro Fac Low Low Zio Machines Disabled 18 | . . 3 5 . . . . . . . . . 10 . . . Max in Single Turn 6 | . . 2 1 . . . . . . . . . 6 . . . Garrison Access 4 | . . . . . . 1 . 3 . . . . . . . . Machines Repaired . | . . . . . . . . . . . . . . . . . Machines Dismantled . | . . . . . . . . . . . . . . . . . Machines Sabotaged . | . . . . . . . . . . . . . . . . . Overloaded Fab Kills . | . . . . . . . . . . . . . . . . . Hacking | -11 -10 -9 -9 -9 -8 -8 -8 -7 -7 -7 -7 -6 -6 -6 -6 -6 --------- Run | Yrd Mat Mat Min Exi Min Mat Sto Fac Low Low Dat Pro Fac Low Low Zio Machines Accessed 40 | . 6 7 . 1 . 6 7 5 . . 3 . 5 . . . Terminals 24 | . 6 5 . . . 4 6 2 . . . . 1 . . . Fabricators 2 | . . . . . . . . . . . . . 2 . . . Repair Stations 4 | . . 1 . . . 1 1 . . . . . 1 . . . Recycling Units 2 | . . 1 . . . . . . . . . . 1 . . . Scanalyzers . | . . . . . . . . . . . . . . . . . Garrison Access 4 | . . . . . . 1 . 3 . . . . . . . . Total Hacks 152 | . 26 20 . 1 . 15 35 12 . . 25 . 18 . . . Successful 97 | . 14 11 . 1 . 8 22 5 . . 25 . 11 . . . Failed 55 | . 12 9 . . . 7 13 7 . . . . 7 . . . Catastrophic 12 | . 3 2 . . . 3 3 1 . . . . . . . . Database Lockouts . | . . . . . . . . . . . . . . . . . Manual 53 | . 13 4 . 1 . 12 15 1 . . . . 2 . . 5 Terminals 88 | . 26 15 . . . 11 28 6 . . . . 2 . . . Fabricators 7 | . . . . . . . . . . . . . 7 . . . Repair Stations 21 | . . 4 . . . 3 7 . . . . . 7 . . . Recycling Units 3 | . . 1 . . . . . . . . . . 2 . . . Scanalyzers . | . . . . . . . . . . . . . . . . . Garrison Access 7 | . . . . . . 1 . 6 . . . . . . . . Terminal Hacks 61 | . 12 4 . 1 . 4 13 1 . . 25 . 1 . . . Record 7 | . 1 . . . . . . . . . 6 . . . . . Part Schematic 10 | . . . . . . . . . . . 10 . . . . . Robot Schematic 8 | . . . . . . . 2 . . . 6 . . . . . Robot Analysis 4 | . 1 . . . . 2 1 . . . . . . . . . Prototype ID Bank 9 | . 5 . . . . . . 1 . . 3 . . . . . Open Door 1 | . . . . . . . 1 . . . . . . . . . Branch Access Points 1 | . . . . . . 1 . . . . . . . . . . Emergency Access Points 1 | . 1 . . . . . . . . . . . . . . . Terminal Index 1 | . . . . . . . 1 . . . . . . . . . Alert Level 10 | . 1 3 . . . 1 4 . . . . . 1 . . . Unreport Threat 3 | . . 1 . . . . 2 . . . . . . . . . Locate Traps 3 | . 2 . . . . . 1 . . . . . . . . . Dispatch Records 1 | . 1 . . . . . . . . . . . . . . . Zone Layout 1 | . . . . . . . 1 . . . . . . . . . Derelict Proto ID Bank 1 | . . . . 1 . . . . . . . . . . . . Fabricator Hacks 3 | . . . . . . . . . . . . . 3 . . . Load Schematic 2 | . . . . . . . . . . . . . 2 . . . Build 1 | . . . . . . . . . . . . . 1 . . . Repair Station Hacks 14 | . . 2 . . . 2 6 . . . . . 4 . . . Scan Component 7 | . . 1 . . . 1 3 . . . . . 2 . . . Repair 7 | . . 1 . . . 1 3 . . . . . 2 . . . Recycling Unit Hacks 3 | . . 1 . . . . . . . . . . 2 . . . Report Inventory 2 | . . 1 . . . . . . . . . . 1 . . . Retrieve Components 1 | . . . . . . . . . . . . . 1 . . . Scanalyzer . | . . . . . . . . . . . . . . . . . Garrison Access Hacks 4 | . . . . . . 1 . 3 . . . . . . . . Seal Access 4 | . . . . . . 1 . 3 . . . . . . . . Unauthorized Hacks 11 | . 2 3 . . . 1 3 1 . . . . 1 . . . Terminals 9 | . 2 2 . . . . 3 1 . . . . 1 . . . Botnet 6 | . 1 1 . . . . 2 1 . . . . 1 . . . Detonate 2 | . 1 1 . . . . . . . . . . . . . . Operators 1 | . . . . . . . 1 . . . . . . . . . Fabricators . | . . . . . . . . . . . . . . . . . Repair Stations 2 | . . 1 . . . 1 . . . . . . . . . . Patch 2 | . . 1 . . . 1 . . . . . . . . . . Recycling Units . | . . . . . . . . . . . . . . . . . Scanalyzers . | . . . . . . . . . . . . . . . . . Garrison Access . | . . . . . . . . . . . . . . . . . Data Cores Recovered 1 | . . . . . . 1 . . . . . . . . . . Used . | . . . . . . . . . . . . . . . . . Hacking Detections 30 | . 6 5 . . . 4 6 4 . . . . 5 . . . Full Trace Events 18 | . 5 4 . . . 2 3 1 . . . . 3 . . . Feedback Events 3 | . 1 . . . . 1 . 1 . . . . . . . . Corruption 3 | . 1 . . . . 1 . 1 . . . . . . . . Feedback Blocked . | . . . . . . . . . . . . . . . . . Robot Schematics Acquired 8 | . . . . . . . 2 . . . 6 . . . . . Robots Built 2 | . . . . . . . . . . . . . 2 . . . Authchips . | . . . . . . . . . . . . . . . . . Time 152 | . . . . . . . . . . . . . 152 . . . Total Robot Build Rating 10 | . . . . . . . . . . . . . 10 . . . Part Schematics Acquired 10 | . . . . . . . . . . . 10 . . . . . Parts Built . | . . . . . . . . . . . . . . . . . Authchips . | . . . . . . . . . . . . . . . . . Time . | . . . . . . . . . . . . . . . . . Total Part Build Rating . | . . . . . . . . . . . . . . . . . Parts Repaired 7 | . . 1 . . . 1 3 . . . . . 2 . . . Time 266 | . . 32 . . . 32 115 . . . . . 87 . . . Parts Recycled . | . . . . . . . . . . . . . . . . . Recycled Matter . | . . . . . . . . . . . . . . . . . Retrieved Matter . | . . . . . . . . . . . . . . . . . Retrieved Components 10 | . . . . . . . . . . . . . 10 . . . Parts Scanalyzed . | . . . . . . . . . . . . . . . . . Part Schematics Acquired . | . . . . . . . . . . . . . . . . . Parts Damaged . | . . . . . . . . . . . . . . . . . Bothacking | -11 -10 -9 -9 -9 -8 -8 -8 -7 -7 -7 -7 -6 -6 -6 -6 -6 ------------ Run | Yrd Mat Mat Min Exi Min Mat Sto Fac Low Low Dat Pro Fac Low Low Zio Used RIF Installer . | . . . . . . . . . . . . . . . . . Robots Hacked . | . . . . . . . . . . . . . . . . . Non-combat . | . . . . . . . . . . . . . . . . . Combat . | . . . . . . . . . . . . . . . . . Robot Hacks Applied . | . . . . . . . . . . . . . . . . . Relay Couplers Released . | . . . . . . . . . . . . . . . . . Fabnet Peak Effective % . | . . . . . . . . . . . . . . . . . Robots Rewired . | . . . . . . . . . . . . . . . . . Allies Hacked . | . . . . . . . . . . . . . . . . . Hacks Repelled . | . . . . . . . . . . . . . . . . . Allies | -11 -10 -9 -9 -9 -8 -8 -8 -7 -7 -7 -7 -6 -6 -6 -6 -6 -------- Run | Yrd Mat Mat Min Exi Min Mat Sto Fac Low Low Dat Pro Fac Low Low Zio Total Allies 12 | . . . . . . . 10 . . . . . 2 . . . Largest Group 10 | . . . . . . . 10 5 . . . . 2 . . . Highest-Rated Group 173 | . . . . . . . 173 74 . . . . 82 . . . Highest-Rated Ally 41 | . . . . . . . 29 16 . . . . 41 . . . Total Orders . | . . . . . . . . . . . . . . . . . Ally Attacks 111 | . . . . . . . 102 1 . . . . 8 . . . Total Damage 1489 | . . . . . . . 1227 . . . . . 262 . . . Kills 14 | . . . . . . . 13 . . . . . 1 . . . Allies Corrupted . | . . . . . . . . . . . . . . . . . Allies Melted . | . . . . . . . . . . . . . . . . . Intel | -11 -10 -9 -9 -9 -8 -8 -8 -7 -7 -7 -7 -6 -6 -6 -6 -6 ------- Run | Yrd Mat Mat Min Exi Min Mat Sto Fac Low Low Dat Pro Fac Low Low Zio Robot Analysis Total 4 | . 1 . . . . 2 1 . . . . . . . . . Derelict Logs Recovered 5 | . . . 1 . . . . . . 1 . 1 . 1 . 1 Drone Launches . | . . . . . . . . . . . . . . . . . Drone Recoveries . | . . . . . . . . . . . . . . . . . Exploration | -11 -10 -9 -9 -9 -8 -8 -8 -7 -7 -7 -7 -6 -6 -6 -6 -6 ------------- Run | Yrd Mat Mat Min Exi Min Mat Sto Fac Low Low Dat Pro Fac Low Low Zio Turns Passed 12886 | . 482 1444 1167 385 662 626 857 802 403 1003 205 810 1419 862 968 791 Spaces Moved 6435 | 1 255 695 610 235 376 293 391 509 276 237 79 310 692 491 563 422 Core 101 | . . . . . . . . 1 . 83 . . . 4 . 13 Treads 4410 | . 186 695 610 235 376 293 391 147 . . . 155 81 269 563 409 Legs 1267 | 1 69 . . . . . . . . 134 79 155 611 218 . . Wheels 657 | . . . . . . . . 361 276 20 . . . . . . Hover . | . . . . . . . . . . . . . . . . . Flight . | . . . . . . . . . . . . . . . . . Fastest Speed 50 | 120 120 160 160 160 160 160 160 115 115 115 260 240 110 50 165 50 Average Speed 167 | 120 149 160 160 160 160 160 160 129 115 400 260 250 149 139 165 163 Slowest Speed 750 | 120 160 160 160 160 160 160 240 700 115 750 260 260 260 240 165 600 Overloaded Moves . | . . . . . . . . . . . . . . . . . Propulsion Burnouts . | . . . . . . . . . . . . . . . . . Robots Hopped . | . . . . . . . . . . . . . . . . . Cave-ins Triggered . | . . . . . . . . . . . . . . . . . Exploration Rate (%) 51 | 1 51 57 89 62 89 22 61 17 43 44 69 50 21 71 75 58 Regions Visited 16 Branch Regions 11 Pre-discovered Areas 3 | . . . 2 . . . . . . . 1 . . . . . Known Exits Taken 6 | . . . . . . 1 . . 1 1 1 1 1 . . . Unknown Exits Taken 10 | 1 1 1 1 1 1 . 1 1 . . . . . 1 1 . Scrap Searched 21 | . . . 2 . 3 . . . . 1 . 4 . 3 5 3 Spaces Dug 2 | . . . . . . . . . . . . . 2 . . . Terrain Destroyed 419 | . . 87 . . 58 22 . 12 . . . 54 150 36 . . Melee 2 | . . . . . . . . . . . . . 2 . . . Projectile . | . . . . . . . . . . . . . . . . . AOE 417 | . . 87 . . 58 22 . 12 . . . 54 148 36 . . Terrain Rammed . | . . . . . . . . . . . . . . . . . Walls Destroyed . | . . . . . . . . . . . . . . . . . Machines Disabled . | . . . . . . . . . . . . . . . . . Actions | -11 -10 -9 -9 -9 -8 -8 -8 -7 -7 -7 -7 -6 -6 -6 -6 -6 --------- Run | Yrd Mat Mat Min Exi Min Mat Sto Fac Low Low Dat Pro Fac Low Low Zio Total 7623 | . 299 870 684 250 410 363 557 584 315 280 82 330 955 586 585 473 Wait 375 | . 2 37 5 1 4 25 106 7 12 27 . 5 122 16 2 4 Move 6419 | . 254 694 609 234 375 292 390 508 275 236 78 309 691 490 562 422 Hop . | . . . . . . . . . . . . . . . . . Pick Up 68 | . 5 16 4 4 1 1 9 5 2 . . 1 15 3 1 1 Fast Attach 63 | . 1 7 . . 1 3 3 7 . 2 . 1 17 12 4 5 Attach 43 | . 2 3 1 . 4 1 . 5 4 3 . 2 8 5 . 5 Detach 32 | . . 4 . 3 1 1 . 3 3 3 2 . 6 2 . 4 Swap 77 | . 1 13 7 . 4 4 9 12 . 1 . 1 17 4 . 4 Drop 81 | . 3 18 3 8 1 . 9 9 . . 2 . 15 4 . 9 Fire 425 | . 31 71 50 . 13 33 26 28 19 8 . 11 58 44 14 19 Melee 11 | . . . . . . . . . . . . . 6 5 . . Ram . | . . . . . . . . . . . . . . . . . Kick . | . . . . . . . . . . . . . . . . . Crush 26 | . . 7 5 . 6 3 3 . . . . . . . 2 . Escape Stasis . | . . . . . . . . . . . . . . . . . Rewire 3 | . . . . . . . 2 . . . . . . 1 . . Trap . | . . . . . . . . . . . . . . . . . Miscellaneous . | . . . . . . . . . . . . . . . . . Route ------- -11/Scrapyard -10/Materials (discovered 2 exits: *Mat / [*Min]) -9/Materials -9/Mines (discovered 3 exits: *Mat x2 / *Exi) -9/Exiles (discovered 2 exits: [*Min x2]) -8/Mines -8/Materials (discovered 2 exits: *Sto x2) -8/Storage -7/Factory (discovered 3 exits: *Fac x2 / [*Low]) -7/Lower Caves -7/Lower Caves (discovered 2 exits: *Fac / *Dat) -7/Data Miner -6/Proximity Caves -6/Factory (discovered 3 exits: *Fac / *Low x2) -6/Lower Caves -6/Lower Caves (discovered 2 exits: *Fac / *Zio) -6/Zion (discovered 1 exit: Pro) History --------- Turn | Location | Event 1 | -11/Scrapyard | Discovered new exit (range 0) 1 | -11/Scrapyard | Entered Materials 243 | -10/Materials | Discovered new exit (range 7) 310 | -10/Materials | Build established: Mutant 413 | -10/Materials | Discovered new exit (range 17) 483 | -10/Materials | Entered another Materials area 483 | -9/Materials | Evolved 2 slots: Utility x1, Weapon x1 934 | -9/Materials | Build established: Tank 994 | -9/Materials | Discovered new exit (range 12) 1256 | -9/Materials | Destroyed 7 combat bots 1390 | -9/Materials | Repaired Cooling System 1482 | -9/Materials | Destroyed 7 combat bots 1927 | -9/Materials | Entered Mines 1928 | -9/Mines | Learned location of Storage (-8) 2295 | -9/Mines | Found a damaged Exp. Sensor Array with a note attached 2298 | -9/Mines | Found Prototype Device 2298 | -9/Mines | Identified Exp. Sensor Array 2680 | -9/Mines | Learned location of Zion (-6) 2760 | -9/Mines | Discovered new exit (range 9) 2936 | -9/Mines | Discovered new exit (range 11) 3087 | -9/Mines | Deemed a non-threat by the Exiles lab entrance 3087 | -9/Mines | Discovered new exit (range 5) 3094 | -9/Mines | Entered Exiles 3115 | -9/Exiles | Discovered new exit (range 15) 3134 | -9/Exiles | Met 8R-AWN 3162 | -9/Exiles | Met EX-HEX 3207 | -9/Exiles | Met EX-BIN 3230 | -9/Exiles | Aligned with FarCom system 3231 | -9/Exiles | Given EX-Vault access code 3268 | -9/Exiles | Opened EX-Vault 3278 | -9/Exiles | Found 0b10 Alert Chip 3291 | -9/Exiles | Found Firepult 3298 | -9/Exiles | Found Gui. Plasma Cannon 3335 | -9/Exiles | Warned to stay clear of 0b10 Research branches 3340 | -9/Exiles | Exiles lab attacked by MAIN.C 3451 | -9/Exiles | Build established: Mutant 3467 | -9/Exiles | Discovered new exit (range 10) 3479 | -9/Exiles | Stole three prototypes: 0b10 Alert Chip, Gui. Plasma Cannon, Firepult 3479 | -9/Exiles | Entered Mines 3802 | -8/Mines | Build established: Skirmisher 4128 | -8/Mines | Discovered new exit (range 9) 4141 | -8/Mines | Entered Materials 4141 | -8/Materials | Evolved 2 slots: Utility x1, Weapon x1 4322 | -8/Materials | Repaired Cooling System 4456 | -8/Materials | Identified exit to Storage 4690 | -8/Materials | Met 7R-MNS 4767 | -8/Materials | Entered Storage 4829 | -8/Storage | Assisted by bots powering up and referring to "LRC-V3" 5098 | -8/Storage | Repaired Imp. Treads 5119 | -8/Storage | Build established: Commander-Skirmisher 5151 | -8/Storage | Repaired Imp. Assault Rifle 5185 | -8/Storage | Repaired Imp. Treads 5424 | -8/Storage | Discovered new exit (range 16) 5624 | -8/Storage | Entered Factory 5624 | -7/Factory | Accompanied by 5 allies 5624 | -7/Factory | Evolved 2 slots: Utility x2 5626 | -7/Factory | FarCom data flow suspended 5882 | -7/Factory | Lost 3 allies 5938 | -7/Factory | Build established: Hacker-Tank 5947 | -7/Factory | Lost 4 parts (1p2n1w) 5948 | -7/Factory | Discovered new exit (range 16) 6128 | -7/Factory | Discovered new exit (range 5) 6387 | -7/Factory | Discovered new exit (range 11) 6426 | -7/Factory | Entered Lower Caves 6724 | -7/Lower Caves | Build established: Skirmisher 6816 | -7/Lower Caves | Discovered new exit (range 14) 6828 | -7/Lower Caves | Identified exit to Lower Caves 6829 | -7/Lower Caves | Entered another Lower Caves area 6829 | -7/Lower Caves | Discovered new exit (range 9) 6838 | -7/Lower Caves | Identified exit to Factory 6853 | -7/Lower Caves | Spotted B-75 Beast 6860 | -7/Lower Caves | Destroyed B-75 Beast 7308 | -7/Lower Caves | Encountered a Warlord checkpoint 7637 | -7/Lower Caves | Learned location of 1 exit from Proximity Caves 7731 | -7/Lower Caves | Discovered new exit (range 6) 7760 | -7/Lower Caves | Identified exit to Data Miner 7832 | -7/Lower Caves | Entered Data Miner 7834 | -7/Data Miner | Discovered new exit (range 6) 7884 | -7/Data Miner | Met Data Miner 7957 | -7/Data Miner | Learned location of Section 7 (-2) 7957 | -7/Data Miner | Acquired the access code to Warlord's prototype stash 7980 | -7/Data Miner | Received God Mode back door access code from Data Miner 8035 | -7/Data Miner | Identified exit to Proximity Caves 8037 | -7/Data Miner | Entered Proximity Caves 8140 | -6/Proximity Caves | Build established: Mutant 8303 | -6/Proximity Caves | Learned Factory terminal intel 8521 | -6/Proximity Caves | Attracted the attention of an 0b10 checkpoint 8847 | -6/Proximity Caves | Entered Factory 8847 | -6/Factory | Evolved 2 slots: Propulsion x1, Utility x1 8848 | -6/Factory | Loaded intel: 25 terminal locations 8888 | -6/Factory | Discovered new exit (range 13) 8931 | -6/Factory | Identified exit to Lower Caves 9135 | -6/Factory | Incoming investigation squad redirected 9151 | -6/Factory | Repaired Utility Shielding 9173 | -6/Factory | Incoming investigation squad redirected 9213 | -6/Factory | Repaired Broken Imp. Cooling System 9229 | -6/Factory | Build established: Skirmisher 9411 | -6/Factory | Discovered new exit (range 8) 9446 | -6/Factory | Identified exit to Factory 9619 | -6/Factory | Cargo convoy interrupted 9659 | -6/Factory | Destroyed 11 combat bots 9659 | -6/Factory | Lost 6 parts (1p2n1u2w) 9684 | -6/Factory | Found Prototype Launcher 9684 | -6/Factory | Identified Tesla Bomb Launcher 9854 | -6/Factory | Found Tesla Bomb Launcher 10024 | -6/Factory | Garrison activated, responded to threat 10099 | -6/Factory | Fabricated H-66 Slayer? 10247 | -6/Factory | First assault squad dispatched 10255 | -6/Factory | Discovered exit to Lower Caves (range 6) 10266 | -6/Factory | Entered Lower Caves 10266 | -6/Lower Caves | Spotted XC-M4K(f) 10266 | -6/Lower Caves | Spotted KP-OS8(f) 10268 | -6/Lower Caves | Encountered a Master Thief 10268 | -6/Lower Caves | Encountered a Master Thief 10272 | -6/Lower Caves | Firepult stolen by Master Thief 10279 | -6/Lower Caves | Gui. Plasma Cannon stolen by Master Thief 10508 | -6/Lower Caves | Attacked by a faux Warlord 10579 | -6/Lower Caves | System corruption reached 10% 10646 | -6/Lower Caves | Lost 13 parts (1p3n4u5w) 10694 | -6/Lower Caves | System corruption reached 30% 10906 | -6/Lower Caves | Build established: Scavenger-Mutant 11102 | -6/Lower Caves | Discovered new exit (range 13) 11128 | -6/Lower Caves | Entered another Lower Caves area 11165 | -6/Lower Caves | Lost 3 parts (1n2u) 11176 | -6/Lower Caves | Discovered exit to Factory (range 10) 11344 | -6/Lower Caves | Encountered a Warlord checkpoint 11407 | -6/Lower Caves | Attracted the attention of an 0b10 checkpoint 11505 | -6/Lower Caves | Build established: Scavenger-Tank 12083 | -6/Lower Caves | Discovered new exit (range 7) 12096 | -6/Lower Caves | Entered Zion 12167 | -6/Zion | System corruption cleaned by Quarantine Array 12204 | -6/Zion | Found CR-A16's Pointy Stick 12299 | -6/Zion | Identified exit to Proximity Caves 12349 | -6/Zion | Acquired unknown access codes intercepted by a Zionite 12378 | -6/Zion | Found Prototype Energy Gun 12378 | -6/Zion | Identified Storm Laser 12563 | -6/Zion | Opened final containment barrier to the Deep Caves 12698 | -6/Zion | Met Imprinter 12709 | -6/Zion | Attacked by Zionites 12712 | -6/Zion | Destroyed Imprinter 12717 | -6/Zion | Core integrity fell below 50% 12756 | -6/Zion | Lost 3 parts (1n2u) 12878 | -6/Zion | Core integrity fell below 20% 12887 | -6/Zion | Destroyed by VL-0TX(M) with Battle Cannon Last Messages --------------- 12873_ CW-HE9(z) heat short circuits Mak. Power Source. 12873_ CW-HE9(z) overheating. 12874_ CW-HE9(z) heat damages Broken Mak. Power Source, Mak. Hover Unit. 12874_ CW-HE9(z) overheating. 12874_ CW-HE9(z) destroyed. 12875_ Destroyed Mak. Shrapnel Gun. 12875_ JI-Y8H(z) destroyed. 6K-BXE(z) bursts out of the Twisted Machinery. 12875_ 9I-A6Y(z) destroyed. 12875_ Knocked back. 12876_ 4Y-7OF(z) IFF system glitched. 12877_ 6K-BXE(z) destroyed. 12877_ Chain reaction triggered in Broken Mak. Power Source. 12877_ QI-BRW(z) pulls a Mak. Laser out of the Twisted Machinery. 12877_ Tesla Bomb Launcher destroyed. 12877_ Knocked back. 12878_ 5F-MM6(z) pulls a Mak. Sword out of the Twisted Machinery. 12879_ Dropped Exp. Matter Compressor. 12881_ Dropped Imp. Energy Well. VC-B9W(z) bursts out of the Twisted Machinery. Map ----- +----------------------------------------------------+ | ??????#X X X# """#" "??????????? | | ??????######### """"""" "" ""?????????? | | ???# "" """" "" ???????? | | ???# """" "????? | | ???# ####### """""""" """ "#???? | | ???????????"""""""#"##"" """" """"?? | | ???????????#""##""""#"" """"" ??? | | ???????????###?###"###" """"" ?? | | ?????????????????####"" ?? | | ????????????????????#"" ? | | ???????????????????##"""" z ?? | | ??????????????#""### """ "" ""#""????? | | ??????????????"""""# "" """ "" """""????? | | ?????????????#"" " """" "" """"????? | | ?????????????#" " """ """#????? | | ?????????????#"""""# "" "##????? | | ???????????????????# "" """#????? | | ???????????????????# "" """##????? | | ???????????????????## """ """"?????? | | ???????????????????##" """ ""##?????? | | ???????????????????#""" z """" """#?????? | | ???????????????????#""" """" ""##?????? | | ???????????????????##"" """ #""#?????? | | ???????????????????##"" % " #""#?????? | | ???????????????????#"""" """#?????? | | ???????????????????##""""@ c #""#?????? | | ??????????????????##""""" "" "" """#?????? | | ??????????????????#""" """" "" """#?????? | | ?????????????????##""" """ "" """#?????? | | ?????????????????#""" M " """##????? | | ?????????????????##"""" = ""##???? | | ??????????????????###"z =% ""#???? | | ???????????????????#"" % !]! ""#???? | | ???????????????????##" [ [ z % " """""#???? | | ???????????????????#"""" z *" """""#???? | | ??????????############"" %!* " ""#""#???? | | ???????"###"""#"#""#""" %=%/ " """#?????? | | ???????#"#"""""""""#"" %*! ""#?????? | | ??""???#""" %"""" %* % "##????? | | """"""?#""" % % "" " ""##???? | | ##"" = !% ""#"" """"#?##? | | "" ##"" !%="" " ""##"" """#####"# | | ?"" """""" " ""##""" "" ""###"##"" | | ?"" =""#"""""" ""#""""""" ""##"#""#" | | ?"" /%"###""""" """#"""""" """""""""" | | "" ###" =""######"""""#"" """ | | ?#""" ""#????##"""""" "" | | """"???#"#" ""#?????##"""" | | ???????#""" ""##?????#"" """""""""# | | ???????###" "#"#????#"" ## ## """" """" | +----------------------------------------------------+ Best States ------------- Heat Dissipation 64 Energy Generation 23 Energy Capacity 900 Matter Stores 779 Matter Capacity 800 Sight Range 18 Robot Scan Range 20 Terrain Scan Density 10 Armor Coverage 450 Resistance: TH 10 Propulsion Shielding 66 Utility Shielding 33 Weapon Shielding 66 Phase Shifting 5 Evasion (%) 55 Melee Accuracy 8 Core Analysis 9 Recoil Reduction 3 Salvage Targeting 1 Offensive Hacking 30 Item Schematics ----------------- Combat Drone Bay | -7/Data Miner | Free Lgt. Regenerative Plating | -7/Data Miner | Free Biomechanical Wings | -7/Data Miner | Free Gravity Neutralizer | -7/Data Miner | Free Imp. Lightning Gun | -7/Data Miner | Free Gyrokinetic Inverter | -7/Data Miner | Free Imp. Thermal Shield | -7/Data Miner | Free Imp. Arc Projector | -7/Data Miner | Free Hvy. Mass Driver | -7/Data Miner | Free Antimatter Reactor | -7/Data Miner | Free Robot Schematics ------------------ L-31 Rogue | -8/Storage | Hacked O-24 Administrator | -8/Storage | Hacked A-15 Conveyor | -7/Data Miner | Free B-48 Gladiator | -7/Data Miner | Free H-66 Slayer | -7/Data Miner | Free L-41 Fighter | -7/Data Miner | Free Y-54 Guardian | -7/Data Miner | Free B-60 Warrior | -7/Data Miner | Free Fabricated ------------ H-66 Slayer | x2 | -6/Factory Alien Tech Used ----------------- None Achievements -------------- None Challenges ------------ None Game ------ Seed PhaseMakeshiftMallet Manual? 0 Play Time 01:11:23 Cumulative 915.5 hours Start 2024.09.01 @ 18:27:57 End 2024.09.02 @ 12:21:03 Sessions 4 Manual Loads 0 Difficulty Rogue Special Mode None Game No. 1104 Rogue 824 Adventurer 124 Explorer 156 Win Type - Total 39 Types 28/0/8/1/1/0/0/1/0 Lore% 79 Gallery% 90 Achievement% 78 Wizard Run 0 Options --------- Layout 0 ASCII 0 Keyboard 1 Movement Numpad Keybinds 0 Fullscreen 2 Font 18/X11 Map View 76x50 Zoom Use 0% Tactical HUD 1 Map Filters NONE Filters NONE Steam 1 RUN: 082b2f66-461d-43cb-975f-5f516ed3f777